bitfinex/quotes_BTCUSD_20221001
["timestamp","ask_amount","ask_price","bid_price","bid_amount"]
[1664657933378,1.36077623,19255.0,19254.0,0.001]
[1664657934285,1.42186762,19255.0,19254.0,0.00092735]
[1664657934524,1.34286762,19255.0,19254.0,0.00092735]
[1664657934950,0.88525945,19255.0,19254.0,0.00092735]
[1664657935188,1.36062623,19255.0,19254.0,0.00092735]
[1664657935428,1.78072464,19255.0,19254.0,0.00092735]
[1664657936089,1.54159398,19255.0,19254.0,0.00092735]
[1664657936316,1.78073057,19255.0,19254.0,0.00092735]
[1664657936506,1.70173057,19255.0,19254.0,0.00092735]
[1664657936743,1.62027315,19255.0,19254.0,0.00092735]
[1664657937156,1.69927315,19255.0,19254.0,0.00092735]
[1664657938392,1.70173805,19255.0,19254.0,0.00092735]
[1664657939039,1.78073805,19255.0,19254.0,0.00092735]
[1664657939262,1.78073799,19255.0,19254.0,0.00092735]
[1664657939497,1.69927315,19255.0,19254.0,0.00092735]
[1664657940395,1.70173776,19255.0,19254.0,0.00092735]
[1664657940831,1.62698776,19255.0,19254.0,0.00092735]
[1664657941039,1.78073776,19255.0,19254.0,0.00092735]
[1664657941258,1.54160117,19255.0,19254.0,0.00092735]
[1664657941475,1.40139879,19255.0,19254.0,0.00092735]
[1664657941697,1.07978201,19255.0,19254.0,0.00092735]
[1664657942193,1.14087876,19255.0,19254.0,0.00092735]
[1664657942398,1.06187876,19255.0,19254.0,0.00092735]
[1664657942798,1.70219305,19255.0,19254.0,0.00092735]
[1664657943025,0.93725086,19255.0,19254.0,0.00092735]
[1664657943229,1.01625086,19255.0,19254.0,0.00092735]
[1664657944089,0.94150086,19255.0,19254.0,0.00092735]
[1664657944342,0.86250086,19255.0,19254.0,0.00092735]
[1664657944580,0.93725086,19255.0,19254.0,0.00092735]
[1664657945319,1.01625086,19255.0,19254.0,0.00092735]
[1664657946444,0.82176592,19255.0,19254.0,0.00092735]
[1664657946677,0.58262894,19255.0,19254.0,0.00092735]
[1664657947121,0.89650571,19255.0,19254.0,0.00092735]
[1664657947373,0.41995319,19255.0,19254.0,0.10794735]
[1664657947594,0.31812677,19255.0,19254.0,1.01895209]
[1664657948514,0.23912677,19255.0,19254.0,1.01895209]
[1664657949421,0.31812677,19255.0,19254.0,1.01895209]
[1664657950087,0.31812677,19255.0,19254.0,1.03988762]
[1664657950325,0.31812677,19255.0,19254.0,2.23119684]
[1664657950326,0.079,19255.0,19254.0,2.23119684]
[1664657950605,0.34090915,19259.0,19254.0,1.87323584]
[1664657950827,0.34090915,19259.0,19255.0,1.10083321]
[1664657951046,0.2798124,19259.0,19256.0,0.32161678]
[1664657951274,0.04072967,19258.0,19255.0,0.51173144]
[1664657951510,0.30666575,19258.0,19255.0,0.51173144]
[1664657951725,0.10182642,19258.0,19255.0,0.51173144]
[1664657952397,0.40182642,19258.0,19255.0,0.51173144]
[1664657952871,0.07475,19257.0,19255.0,0.51173144]
[1664657953091,0.40182642,19258.0,19255.0,0.51173144]
[1664657953313,0.48082642,19258.0,19255.0,0.51173144]
[1664657954461,0.34072967,19258.0,19255.0,0.51173144]
[1664657954698,0.40182642,19258.0,19255.0,0.51173144]
[1664657955162,0.34072967,19258.0,19255.0,0.51173144]
[1664657955378,0.41972967,19258.0,19255.0,0.51173144]
[1664657955791,0.2390893,19257.0,19255.0,0.51173144]
[1664657956012,0.5390893,19257.0,19256.0,0.1]
[1664657957279,0.6180893,19257.0,19255.0,0.51173144]
[1664657958553,0.5390893,19257.0,19256.0,0.1]
[1664657958772,0.2390893,19257.0,19256.0,0.1]
[1664657959250,0.7075563,19257.0,19256.0,0.1]
[1664657959535,1.0075563,19257.0,19256.0,0.1]
[1664657959756,0.7075563,19257.0,19256.0,0.1]
[1664657959976,0.7075563,19257.0,19256.0,0.457961]
[1664657960200,0.7075563,19257.0,19256.0,1.0]
[1664657960419,0.7075563,19257.0,19256.0,0.1]
[1664657960633,0.6285563,19257.0,19255.0,0.51173144]
[1664657960845,0.389467,19257.0,19256.0,0.9]
[1664657961066,0.389467,19257.0,19255.0,0.51173144]
[1664657961281,0.468467,19257.0,19255.0,0.83334822]
[1664657961509,0.468467,19257.0,19256.0,0.9]
[1664657961745,0.079,19257.0,19256.0,1.67957778]
[1664657962679,0.129818,19258.0,19256.0,1.0]
[1664657962897,0.129818,19258.0,19257.0,0.1]
[1664657963350,0.208818,19258.0,19257.0,0.1]
[1664657963623,0.508818,19258.0,19255.0,0.96327422]
[1664657964523,0.68945,19258.0,19255.0,0.96327422]
[1664657964767,0.38945,19258.0,19255.0,0.96327422]
[1664657964994,0.38945,19258.0,19256.0,0.9]
[1664657965439,0.46845,19258.0,19257.0,0.1]
[1664657967009,0.38945,19258.0,19257.0,0.1]
[1664657967444,0.46845,19258.0,19257.0,0.1]
[1664657968548,0.38945,19258.0,19257.0,0.1]
[1664657969460,0.079,19258.0,19257.0,0.1]
[1664657969673,0.079,19258.0,19257.0,0.56864653]
[1664657969951,0.079,19258.0,19257.0,0.24702975]
[1664657970433,0.079,19258.0,19257.0,0.56864653]
[1664657970654,0.36888342,19259.0,19257.0,0.24702975]
[1664657970861,0.36888342,19259.0,19258.0,0.1]
[1664657971249,0.44788342,19259.0,19258.0,0.1]
[1664657971485,0.20881,19259.0,19258.0,0.1]
[1664657971700,0.28356,19259.0,19258.0,0.1]
[1664657972054,0.19381,19259.0,19258.0,0.1]
[1664657972488,0.26856,19259.0,19258.0,0.1]
[1664657972712,0.18956,19259.0,19258.0,0.1]
[1664657972966,0.75819088,19260.0,19258.0,1.70256898]
[1664657973177,0.75819088,19260.0,19259.0,0.1]
[1664657973416,0.70322788,19260.0,19257.0,0.129912]
[1664657973669,0.23906588,19260.0,19257.0,0.129912]
[1664657973881,0.07475,19259.0,19257.0,0.129912]
[1664657974118,0.3,19259.0,19257.0,0.129912]
[1664657974339,0.07475,19258.0,19257.0,0.129912]
[1664657974564,0.689432,19259.0,19257.0,0.129912]
[1664657975467,0.768432,19259.0,19257.0,0.129912]
[1664657976589,0.689432,19259.0,19257.0,0.129912]
[1664657977486,0.768432,19259.0,19257.0,0.129912]
[1664657977703,0.07475,19258.0,19257.0,0.129912]
[1664657977939,0.768432,19259.0,19257.0,0.129912]
[1664657978167,0.768432,19259.0,19258.0,0.1]
[1664657978387,0.468432,19259.0,19258.0,0.1]
[1664657978603,0.389432,19259.0,19258.0,0.1]
[1664657978861,0.389432,19259.0,19257.0,0.129912]
[1664657979324,0.468432,19259.0,19257.0,0.129912]
[1664657980433,0.07475,19258.0,19257.0,0.129912]
[1664657980662,0.389432,19259.0,19257.0,0.129912]
[1664657981350,0.468432,19259.0,19258.0,0.1]
[1664657981569,0.768432,19259.0,19258.0,0.1]
[1664657982691,0.689432,19259.0,19258.0,0.1]
[1664657983289,0.768432,19259.0,19258.0,0.1]
[1664657983957,0.768432,19259.0,19257.0,0.129912]
[1664657984170,0.768432,19259.0,19257.0,0.45152878]
[1664657984378,0.768432,19259.0,19257.0,0.129912]
[1664657984593,0.379,19259.0,19257.0,0.129912]
[1664657984810,0.689432,19259.0,19257.0,0.129912]
[1664657985267,0.768432,19259.0,19257.0,0.129912]
[1664657986134,0.07475,19258.0,19257.0,0.129912]
[1664657986597,0.689432,19259.0,19257.0,0.129912]
[1664657986823,0.3,19259.0,19257.0,0.129912]
[1664657987395,0.379,19259.0,19257.0,0.129912]
[1664657987615,0.07475,19258.0,19257.0,0.129912]
[1664657987842,1.00749939,19259.0,19257.0,0.129912]
[1664657988086,0.61806739,19259.0,19257.0,0.129912]
[1664657988509,0.53906739,19259.0,19257.0,0.129912]
[1664657989056,0.92849939,19259.0,19257.0,0.129912]
[1664657989287,0.07475,19258.0,19257.0,0.129912]
[1664657989537,1.00749939,19259.0,19257.0,0.129912]
[1664657989763,0.61806739,19259.0,19257.0,0.129912]
[1664657990492,0.53906739,19259.0,19257.0,0.129912]
[1664657990704,0.92849939,19259.0,19257.0,0.129912]
[1664657991364,1.00749939,19259.0,19257.0,0.129912]
[1664657991576,0.07475,19258.0,19257.0,0.129912]
[1664657991793,1.00749939,19259.0,19257.0,0.129912]
[1664657992014,0.61806739,19259.0,19257.0,0.129912]
[1664657992226,0.65879706,19259.0,19257.0,0.129912]
[1664657992672,0.20483933,19258.0,19256.0,0.01876169]
[1664657992893,0.75004,19258.0,19255.0,0.51173144]
[1664657993155,0.906436,19257.0,19256.0,0.357961]
[1664657993373,0.906436,19257.0,19255.0,0.51173144]
[1664657993593,0.906436,19257.0,19255.0,0.60982581]
[1664657993814,0.906436,19257.0,19255.0,1.83144259]
[1664657994070,0.906436,19257.0,19255.0,1.50982581]
[1664657994767,0.906436,19257.0,19256.0,0.357961]
[1664657994993,0.906436,19257.0,19255.0,1.63975181]
[1664657995444,0.985436,19257.0,19255.0,1.63975181]
[1664657996249,0.07475,19256.0,19255.0,0.51173144]
[1664657996486,0.985436,19257.0,19255.0,0.51173144]
[1664657996727,0.906436,19257.0,19255.0,0.51173144]
[1664657997141,0.906436,19257.0,19256.0,0.05]
[1664657997359,0.985436,19257.0,19255.0,0.51173144]
[1664657998061,0.985436,19257.0,19256.0,0.05]
[1664657998619,1.22452376,19257.0,19255.0,0.51173144]
[1664657998836,1.14552376,19257.0,19256.0,0.357961]
[1664657999056,1.14552376,19257.0,19255.0,0.71010297]
[1664657999496,1.22452376,19257.0,19255.0,0.71010297]
[1664658000253,1.22452376,19257.0,19255.0,0.63667644]
[1664658000530,1.14552376,19257.0,19255.0,0.63667644]
[1664658001242,0.387145,19257.0,19255.0,1.53667644]
[1664658001474,0.2065,19257.0,19256.0,0.357961]
[1664658001736,0.2065,19257.0,19255.0,1.73725631]
[1664658001972,0.2065,19257.0,19255.0,2.05887309]
[1664658002708,0.1275,19257.0,19255.0,2.05887309]
[1664658002931,0.1275,19257.0,19256.0,0.357961]
[1664658003204,0.761895,19257.0,19255.0,0.63667644]
[1664658003420,1.32616567,19257.0,19255.0,0.51173144]
[1664658003868,1.32616567,19257.0,19256.0,0.05]
[1664658004083,1.285436,19257.0,19255.0,0.51173144]
[1664658004644,1.206436,19257.0,19256.0,0.05]
[1664658004860,1.206436,19257.0,19255.0,0.51173144]
[1664658005091,1.206436,19257.0,19255.0,0.64165644]
[1664658005305,0.906436,19257.0,19255.0,0.64165644]
[1664658005567,0.985436,19257.0,19255.0,0.64165644]
[1664658006678,0.906436,19257.0,19255.0,0.64165644]
[1664658006911,0.906436,19257.0,19256.0,0.357961]
[1664658007132,0.906436,19257.0,19255.0,0.64165644]
[1664658007350,1.14552419,19257.0,19255.0,0.64165644]
[1664658007570,1.22452419,19257.0,19255.0,0.64165644]
[1664658008116,1.22177127,19257.0,19255.0,0.64165644]
[1664658008276,0.70248027,19257.0,19256.0,0.357961]
[1664658008488,0.70248027,19257.0,19255.0,0.73975011]
[1664658008740,0.62348027,19257.0,19255.0,0.73975011]
[1664658009375,0.70248027,19257.0,19255.0,0.64165644]
[1664658009739,0.00298291,19256.0,19255.0,0.51173144]
[1664658009935,0.00298291,19256.0,19255.0,0.83334822]
[1664658010159,0.00298291,19256.0,19255.0,0.86969244]
[1664658011043,0.00298291,19256.0,19255.0,0.51173144]
[1664658011188,0.00298291,19256.0,19255.0,0.86969244]
[1664658011402,0.08198291,19256.0,19255.0,1.00358271]
[1664658012030,0.08198291,19256.0,19255.0,0.64562171]
[1664658012257,0.08198291,19256.0,19255.0,0.51173144]
[1664658012490,0.08198291,19256.0,19255.0,0.86969244]
[1664658012703,0.00298291,19256.0,19255.0,0.86969244]
[1664658013204,0.00298291,19256.0,19255.0,1.19130922]
[1664658013418,0.08198291,19256.0,19255.0,0.86969244]
[1664658014136,0.08198291,19256.0,19255.0,0.51173144]
[1664658014534,0.08198291,19256.0,19255.0,0.86969244]
[1664658014761,0.00298291,19256.0,19255.0,0.86969244]
[1664658014963,0.00298291,19256.0,19255.0,0.51173144]
[1664658015675,0.08198291,19256.0,19255.0,0.51173144]
[1664658015854,0.08198291,19256.0,19255.0,0.86969244]
[1664658016119,0.08198291,19256.0,19255.0,0.51173144]
[1664658016552,0.08198291,19256.0,19255.0,0.86969244]
[1664658016706,0.00298291,19256.0,19255.0,0.86969244]
[1664658016951,0.13281191,19256.0,19255.0,0.86969244]
[1664658017368,0.13281191,19256.0,19255.0,0.51173144]
[1664658017600,0.21181191,19256.0,19255.0,0.86969244]
[1664658018038,0.21181191,19256.0,19255.0,0.51173144]
[1664658018740,0.13281191,19256.0,19255.0,0.51173144]
[1664658019456,0.21181191,19256.0,19255.0,0.51173144]
[1664658020347,0.21181191,19256.0,19255.0,0.86969244]
[1664658020814,0.21181191,19256.0,19255.0,0.51173144]
[1664658021254,0.13281191,19256.0,19255.0,0.51173144]
[1664658021486,0.21181191,19256.0,19255.0,0.51173144]
[1664658022163,0.21181191,19256.0,19255.0,0.86969244]
[1664658022836,0.13281191,19256.0,19255.0,0.86969244]
[1664658023324,0.13281191,19256.0,19255.0,1.00358271]
[1664658023562,0.21181191,19256.0,19255.0,1.00358271]
[1664658024457,0.08198291,19256.0,19255.0,1.00358271]
[1664658024696,0.00298291,19256.0,19255.0,1.00358271]
[1664658025487,0.08198291,19256.0,19255.0,1.00358271]
[1664658026714,0.00298291,19256.0,19255.0,1.00358271]
[1664658027453,0.08198291,19256.0,19255.0,1.00358271]
[1664658027649,0.08198291,19256.0,19255.0,0.64562171]
[1664658028200,0.08198291,19256.0,19255.0,0.86969244]
[1664658028618,0.00298291,19256.0,19255.0,0.51173144]
[1664658029548,0.08198291,19256.0,19255.0,0.51173144]
[1664658029985,0.08198291,19256.0,19255.0,1.76969244]
[1664658030657,0.08198291,19256.0,19255.0,1.41173144]
[1664658031161,0.00298291,19256.0,19255.0,1.41173144]
[1664658031383,0.00298291,19256.0,19255.0,1.76969244]
[1664658031591,0.08198291,19256.0,19255.0,1.76969244]
[1664658033149,0.21181191,19256.0,19255.0,0.51163364]
[1664658033423,0.47147091,19256.0,19255.0,0.51163364]
[1664658033647,0.55047091,19256.0,19255.0,0.51163364]
[1664658034787,0.55047091,19256.0,19255.0,1.41163364]
[1664658034788,0.39247091,19256.0,19255.0,1.41163364]
[1664658035657,0.47147091,19256.0,19255.0,1.41163364]
[1664658036702,0.39247091,19256.0,19255.0,1.41163364]
[1664658037587,0.47147091,19256.0,19255.0,1.41163364]
[1664658038269,0.47147091,19256.0,19255.0,1.42463908]
[1664658038820,0.39247091,19256.0,19255.0,1.42463908]
[1664658039252,0.39247091,19256.0,19255.0,1.78260008]
[1664658039523,0.47147091,19256.0,19255.0,1.42463908]
[1664658040221,0.47147091,19256.0,19255.0,1.78260008]
[1664658040431,0.47147091,19256.0,19255.0,1.42463908]
[1664658040879,0.39247091,19256.0,19255.0,1.42463908]
[1664658041224,0.39247091,19256.0,19255.0,1.78260008]
[1664658041652,0.21181191,19256.0,19255.0,1.78260008]
[1664658041890,0.21181191,19256.0,19255.0,1.42463908]
[1664658042117,0.21181191,19256.0,19255.0,1.78260008]
[1664658042374,0.08198291,19256.0,19255.0,2.29723621]
[1664658042980,0.00298291,19256.0,19255.0,2.29723621]
[1664658043669,0.08198291,19256.0,19255.0,2.29723621]
[1664658043894,0.08198291,19256.0,19255.0,1.97561943]
[1664658044487,0.08198291,19256.0,19255.0,2.29723621]
[1664658044640,0.08198291,19256.0,19255.0,1.97561943]
[1664658044878,0.00298291,19256.0,19255.0,1.78260008]
[1664658045542,0.08198291,19256.0,19255.0,1.78260008]
[1664658047125,0.00298291,19256.0,19255.0,1.78260008]
[1664658047388,0.00298291,19256.0,19255.0,1.42463908]
[1664658047595,0.08198291,19256.0,19255.0,1.42463908]
[1664658047812,0.08198291,19256.0,19255.0,1.92683033]
[1664658048789,0.08198291,19256.0,19255.0,1.56886933]
[1664658049020,0.00298291,19256.0,19255.0,1.56886933]
[1664658049225,0.00298291,19256.0,19255.0,1.92683033]
[1664658049659,0.08198291,19256.0,19255.0,1.92683033]
[1664658050391,0.08198291,19256.0,19255.0,1.56886933]
[1664658050610,0.08198291,19256.0,19255.0,1.92683033]
[1664658050833,0.00298291,19256.0,19255.0,1.56886933]
[1664658050978,0.00298291,19256.0,19255.0,1.92683033]
[1664658051649,0.08198291,19256.0,19255.0,1.92683033]
[1664658052978,0.00298291,19256.0,19255.0,2.24844711]
[1664658053667,0.08198291,19256.0,19255.0,1.92683033]
[1664658055042,0.00298291,19256.0,19255.0,1.92683033]
[1664658055479,0.00298291,19256.0,19255.0,2.24844711]
[1664658055695,0.08187325,19256.0,19255.0,2.24844711]
[1664658056473,0.08187325,19256.0,19255.0,2.29844711]
[1664658056989,0.00287325,19256.0,19255.0,2.29844711]
[1664658057655,0.08187325,19256.0,19255.0,2.29844711]
[1664658058853,0.08187325,19256.0,19255.0,2.24844711]
[1664658059074,0.00287325,19256.0,19255.0,1.56886933]
[1664658059300,0.00287325,19256.0,19255.0,1.92683033]
[1664658059528,0.00287325,19256.0,19255.0,1.56886933]
[1664658059751,0.08187325,19256.0,19255.0,1.93423033]
[1664658060908,0.00287325,19256.0,19255.0,1.93423033]
[1664658061141,0.00287325,19256.0,19255.0,1.57626933]
[1664658061632,0.08187325,19256.0,19255.0,1.56886933]
[1664658061851,0.08187325,19256.0,19255.0,1.42463908]
[1664658062066,0.08187325,19256.0,19255.0,1.78260008]
[1664658062751,0.08187325,19256.0,19255.0,1.42463908]
[1664658063206,0.08187325,19256.0,19255.0,1.78260008]
[1664658063440,0.00287325,19256.0,19255.0,1.42463908]
[1664658063666,0.08187325,19256.0,19255.0,1.42463908]
[1664658063881,0.08187325,19256.0,19255.0,1.78260008]
[1664658064870,0.00287325,19256.0,19255.0,1.78260008]
[1664658065301,0.00287325,19256.0,19255.0,1.60466543]
[1664658065443,0.00287325,19256.0,19255.0,1.96262643]
[1664658065652,0.08187325,19256.0,19255.0,1.60466543]
[1664658065909,0.08187325,19256.0,19255.0,1.96262643]
[1664658066952,0.00287325,19256.0,19255.0,1.96262643]
[1664658067174,0.00287325,19256.0,19255.0,1.60466543]
[1664658067382,0.00287325,19256.0,19255.0,1.96262643]
[1664658067593,0.08187325,19256.0,19255.0,1.60466543]
[1664658068028,0.08187325,19256.0,19255.0,1.96262643]
[1664658068668,0.08187325,19256.0,19255.0,1.60466543]
[1664658068909,0.00287325,19256.0,19255.0,1.96262643]
[1664658069499,0.00287325,19256.0,19255.0,1.60466543]
[1664658069784,0.08187325,19256.0,19255.0,1.96262643]
[1664658070269,0.08187325,19256.0,19255.0,1.60466543]
[1664658070487,0.08187325,19256.0,19255.0,1.96262643]
[1664658070917,0.00287325,19256.0,19255.0,1.96262643]
[1664658071759,0.08187325,19256.0,19255.0,1.96262643]
[1664658072975,0.00287325,19256.0,19255.0,1.96262643]
[1664658073660,0.08187325,19256.0,19255.0,1.96262643]
[1664658074594,0.08187325,19256.0,19255.0,2.28424321]
[1664658075069,0.00287325,19256.0,19255.0,2.33424321]
[1664658075290,0.00287325,19256.0,19255.0,1.96262643]
[1664658075506,0.00287325,19256.0,19255.0,2.28424321]
[1664658075733,0.08187325,19256.0,19255.0,2.41407921]
[1664658076663,0.08187325,19256.0,19255.0,2.09246243]
[1664658076906,0.08187325,19256.0,19255.0,2.41407921]
[1664658077147,0.08187325,19256.0,19255.0,2.72375121]
[1664658077148,0.00287325,19256.0,19255.0,2.72375121]
[1664658077599,0.00287325,19256.0,19255.0,2.67375121]
[1664658077814,0.08187325,19256.0,19255.0,1.99417343]
[1664658078052,0.08187325,19256.0,19255.0,2.67375121]
[1664658078933,0.00287325,19256.0,19255.0,2.67375121]
[1664658079852,0.08187325,19256.0,19255.0,2.67375121]
[1664658079990,0.0816947,19256.0,19255.0,2.67375121]
[1664658080494,0.0816947,19256.0,19255.0,2.41407921]
[1664658081066,0.0026947,19256.0,19255.0,2.41407921]
[1664658081487,0.0026947,19256.0,19255.0,2.09246243]
[1664658081704,0.0026947,19256.0,19255.0,1.91243608]
[1664658081917,0.0816947,19256.0,19255.0,1.42463908]
[1664658082592,0.0816947,19256.0,19255.0,1.78260008]
[1664658082792,0.0816947,19256.0,19255.0,1.42463908]
[1664658082972,0.0026947,19256.0,19255.0,1.78260008]
[1664658083799,0.0816947,19256.0,19255.0,1.78260008]
[1664658084221,0.0816947,19256.0,19255.0,1.42463908]
[1664658084859,0.0816947,19256.0,19255.0,1.78260008]
[1664658085069,0.0026947,19256.0,19255.0,1.42463908]
[1664658085741,0.0816947,19256.0,19255.0,1.78260008]
[1664658086391,0.0816947,19256.0,19255.0,1.42463908]
[1664658086831,0.0816947,19256.0,19255.0,1.78260008]
[1664658087042,0.0026947,19256.0,19255.0,1.42463908]
[1664658087484,0.0026947,19256.0,19255.0,1.59484643]
[1664658087706,0.0026947,19256.0,19255.0,1.42463908]
[1664658087707,0.0816947,19256.0,19255.0,1.42463908]
[1664658087917,0.0816947,19256.0,19255.0,1.78260008]
[1664658088594,0.0816947,19256.0,19255.0,2.10421686]
[1664658089054,0.0026947,19256.0,19255.0,2.10421686]
[1664658089724,0.0816947,19256.0,19255.0,2.10421686]
[1664658090121,0.0816947,19256.0,19255.0,2.38134309]
[1664658090992,0.0026947,19256.0,19255.0,2.38134309]
[1664658091902,0.0816947,19256.0,19255.0,2.38134309]
[1664658093263,0.0026947,19256.0,19255.0,2.05972631]
[1664658093955,0.0816947,19256.0,19255.0,2.38134309]
[1664658094829,0.0816947,19256.0,19255.0,2.05972631]
[1664658095047,0.0026947,19256.0,19255.0,2.05972631]
[1664658095270,0.0026947,19256.0,19255.0,2.07338209]
[1664658095490,0.0026947,19256.0,19255.0,2.38134309]
[1664658095748,0.0026947,19256.0,19255.0,2.51117909]
[1664658095986,0.0816947,19256.0,19255.0,1.42463908]
[1664658096233,0.0816947,19256.0,19255.0,1.78260008]
[1664658096455,0.0816947,19256.0,19255.0,0.52463908]
[1664658097143,0.0583647,19256.0,19255.0,0.52463908]
[1664658097363,0.3921827,19256.0,19255.0,1.42463908]
[1664658097586,0.3921827,19256.0,19255.0,0.88260008]
[1664658097825,0.4711827,19256.0,19255.0,0.88260008]
[1664658098059,0.4711827,19256.0,19255.0,0.52463908]
[1664658098501,0.5459327,19256.0,19255.0,0.52463908]
[1664658098731,0.4711827,19256.0,19255.0,0.52463908]
[1664658099190,0.3921827,19256.0,19255.0,0.52463908]
[1664658099424,0.3921827,19256.0,19255.0,0.50963908]
[1664658099924,0.4711827,19256.0,19255.0,0.86760008]
[1664658100138,0.4711827,19256.0,19255.0,0.50963908]
[1664658101332,0.3921827,19256.0,19255.0,0.50963908]
[1664658102014,0.4711827,19256.0,19255.0,0.50963908]
[1664658103241,0.3921827,19256.0,19255.0,0.50963908]
[1664658104013,0.4711827,19256.0,19255.0,0.50963908]
[1664658105137,0.3921827,19256.0,19255.0,0.50963908]
[1664658105902,0.4711827,19256.0,19255.0,0.50963908]
[1664658106999,0.3921827,19256.0,19255.0,0.50963908]
[1664658107451,0.4669327,19256.0,19255.0,0.50963908]
[1664658107841,0.4711827,19256.0,19255.0,0.50963908]
[1664658109157,0.3921827,19256.0,19255.0,0.50963908]
[1664658109378,0.4669327,19256.0,19255.0,0.50963908]
[1664658109538,0.3921827,19256.0,19255.0,0.50963908]
[1664658109823,0.4711827,19256.0,19255.0,0.50963908]
[1664658110027,0.4711827,19256.0,19255.0,0.86760008]
[1664658110248,0.4711827,19256.0,19255.0,0.50963908]
[1664658111160,0.3921827,19256.0,19255.0,0.50963908]
[1664658111926,0.4711827,19256.0,19255.0,0.50963908]
[1664658113195,0.3921827,19256.0,19255.0,0.50963908]
[1664658113904,0.4711827,19256.0,19255.0,0.86760008]
[1664658114116,0.4711827,19256.0,19255.0,1.76760008]
[1664658114336,0.0816947,19256.0,19255.0,1.86911933]
[1664658114551,0.0816947,19256.0,19255.0,1.51115833]
[1664658115012,0.0816947,19256.0,19255.0,1.76760008]
[1664658115259,0.0026947,19256.0,19255.0,1.40963908]
[1664658115486,0.0026947,19256.0,19255.0,1.76760008]
[1664658115843,0.0816947,19256.0,19255.0,1.76760008]
[1664658116999,0.0816947,19256.0,19255.0,1.40963908]
[1664658117243,0.0026947,19256.0,19255.0,1.76760008]
[1664658117472,0.0026947,19256.0,19255.0,1.97210353]
[1664658117923,0.0816947,19256.0,19255.0,1.97210353]
[1664658118505,0.0816947,19256.0,19255.0,1.61414253]
[1664658118714,0.0816947,19256.0,19255.0,1.97210353]
[1664658119397,0.0026947,19256.0,19255.0,1.75760008]
[1664658119573,0.0026947,19256.0,19255.0,1.39963908]
[1664658119980,0.0816947,19256.0,19255.0,1.39963908]
[1664658120656,0.0816947,19256.0,19255.0,1.75760008]
[1664658121075,0.0026947,19256.0,19255.0,1.96110353]
[1664658121959,0.0816947,19256.0,19255.0,1.60314253]
[1664658122179,0.0816947,19256.0,19255.0,1.96110353]
[1664658122329,0.0816947,19256.0,19255.0,1.60314253]
[1664658123236,0.0026947,19256.0,19255.0,1.96110353]
[1664658123954,0.0816947,19256.0,19255.0,1.60314253]
[1664658124174,0.0816947,19256.0,19255.0,1.96110353]
[1664658124395,0.0816947,19256.0,19255.0,1.60314253]
[1664658125705,0.0026947,19256.0,19255.0,1.60314253]
[1664658125932,0.0816947,19256.0,19255.0,1.96110353]
[1664658127296,0.0026947,19256.0,19255.0,1.96110353]
[1664658127957,0.0816947,19256.0,19255.0,1.60314253]
[1664658128175,0.0816947,19256.0,19255.0,1.39963908]
[1664658128395,0.0816947,19256.0,19255.0,1.75760008]
[1664658128883,0.0816947,19256.0,19255.0,1.80760008]
[1664658129107,0.0816947,19256.0,19255.0,1.75760008]
[1664658129330,0.0026947,19256.0,19255.0,1.75760008]
[1664658129551,0.0026947,19256.0,19255.0,1.80760008]
[1664658129772,0.0026947,19256.0,19255.0,2.13506503]
[1664658130006,0.0816947,19256.0,19255.0,1.77710403]
[1664658130248,0.0816947,19256.0,19255.0,2.26490103]
[1664658131187,0.0816947,19256.0,19255.0,1.72710403]
[1664658131454,0.0026947,19256.0,19255.0,2.08506503]
[1664658131904,0.0026947,19256.0,19255.0,1.72710403]
[1664658132137,0.0816947,19256.0,19255.0,2.08506503]
[1664658132386,0.0816947,19256.0,19255.0,2.21490103]
[1664658132619,0.0816947,19256.0,19255.0,2.52457303]
[1664658133080,0.0816947,19256.0,19255.0,2.57457303]
[1664658133318,0.0026947,19256.0,19255.0,3.09391803]
[1664658134040,0.0816947,19256.0,19255.0,3.09391803]
[1664658135219,0.55992067,19261.0,19255.0,3.09391803]
[1664658135220,0.04072967,19261.0,19258.0,0.2]
[1664658135462,0.04072967,19264.0,19260.0,1.0]
[1664658135707,2.60991697,19263.0,19261.0,0.52563771]
[1664658135943,2.60991697,19263.0,19261.0,0.20483933]
[1664658136173,0.95314221,19265.0,19260.0,0.87445677]
[1664658136403,0.89204546,19265.0,19261.0,0.20483933]
[1664658136643,0.07475,19264.0,19261.0,0.33472433]
[1664658136879,0.3,19264.0,19261.0,0.129885]
[1664658137118,0.3,19264.0,19263.0,0.01300544]
[1664658137351,0.3,19264.0,19261.0,0.129885]
[1664658137984,0.3,19264.0,19261.0,1.09404664]
[1664658138222,0.98098279,19265.0,19261.0,0.154885]
[1664658138415,0.98098279,19265.0,19261.0,0.35972433]
[1664658138416,1.02171246,19265.0,19261.0,0.35972433]
[1664658138597,1.02171246,19265.0,19263.0,0.01300544]
[1664658138815,0.98098279,19265.0,19261.0,0.35972433]
[1664658138986,1.18995924,19265.0,19261.0,0.35972433]
[1664658139223,1.14922957,19265.0,19261.0,0.33472433]
[1664658139898,1.18995924,19265.0,19261.0,0.154885]
[1664658140115,0.07475,19264.0,19263.0,0.01300544]
[1664658140351,0.07475,19264.0,19261.0,0.154885]
[1664658140352,3.15141215,19264.0,19261.0,0.154885]
[1664658140575,0.59802178,19264.0,19261.0,0.154885]
[1664658140792,0.429775,19264.0,19261.0,0.154885]
[1664658141009,0.5390131,19264.0,19261.0,0.154885]
[1664658141450,0.2390131,19264.0,19261.0,0.154885]
[1664658141731,0.2390131,19264.0,19262.0,0.01300544]
[1664658141953,0.2390131,19264.0,19261.0,0.154885]
[1664658143062,0.5390131,19264.0,19262.0,0.01300544]
[1664658143277,0.07475,19263.0,19261.0,0.129885]
[1664658143493,0.6687891,19264.0,19261.0,0.129885]
[1664658143920,0.6687891,19264.0,19261.0,0.155885]
[1664658144358,0.07475,19263.0,19261.0,0.155885]
[1664658144636,0.6687891,19264.0,19262.0,0.01300544]
[1664658144815,0.07475,19263.0,19262.0,0.01300544]
[1664658145026,0.6687891,19264.0,19262.0,0.01300544]
[1664658145399,0.6687891,19264.0,19261.0,0.155885]
[1664658145623,0.6687891,19264.0,19261.0,0.129885]
[1664658146122,0.429776,19264.0,19261.0,0.155885]
[1664658146347,0.07475,19263.0,19262.0,0.01300544]
[1664658146573,0.429776,19264.0,19261.0,0.155885]
[1664658147406,0.429776,19264.0,19261.0,0.129885]
[1664658147631,0.429776,19264.0,19262.0,0.01300544]
[1664658147842,0.07475,19263.0,19261.0,0.129885]
[1664658148065,0.429776,19264.0,19261.0,0.155885]
[1664658148241,0.07475,19263.0,19261.0,0.155885]
[1664658148753,2.91933003,19264.0,19261.0,0.155885]
[1664658148973,0.129783,19263.0,19261.0,0.155885]
[1664658149222,0.129783,19263.0,19262.0,0.01300544]